fUSD/lending_fUSD_20250607
["ID","MTS","AMOUNT","RATE_DAILY","PERIOD"]
[364868440,1749282705319,-480.0,0.00028383,5]
[364868441,1749282705328,-506.48906902,0.00028383,5]
[364868442,1749282705338,-480.0,0.00028383,5]
[364868443,1749282705348,-480.0,0.00028383,5]
[364868444,1749282705357,-480.0,0.00028383,5]
[364868445,1749282705367,-480.0,0.00028383,5]
[364868446,1749282705377,-480.0,0.00028383,5]
[364868447,1749282705387,-480.0,0.00028383,5]
[364868448,1749282705396,-480.0,0.00028383,5]
[364868449,1749282705405,-480.0,0.00028383,5]
[364868450,1749282705415,-480.0,0.00028383,5]
[364868451,1749282705424,-480.0,0.00028383,2]
[364868452,1749282705433,-480.0,0.00028383,2]
[364868453,1749282705443,-480.0,0.00028383,5]
[364868454,1749282705453,-577.15,0.00028383,5]
[364868455,1749282705462,-480.0,0.00028383,5]
[364868456,1749282705472,-509.8,0.00028383,5]
[364868457,1749282705482,-480.0,0.00028383,5]
[364868458,1749282705492,-480.0,0.00028383,5]
[364868459,1749282705501,-480.0,0.00028383,2]
[364868460,1749282705511,-480.0,0.00028383,5]
[364868461,1749282705520,-480.0,0.00028383,5]
[364868462,1749282705531,-842.56,0.00028383,5]
[364868463,1749282705540,-480.0,0.00028383,5]
[364868464,1749282705550,-618.47,0.00028383,5]
[364868465,1749282705560,-503.23426074,0.00028383,5]
[364868466,1749282705569,-480.0,0.00028383,5]
[364868467,1749282705581,-1163.74,0.00028383,5]
[364868468,1749282705591,-480.0,0.00028383,5]
[364868469,1749282705600,-517.82010398,0.00028383,5]
[364868470,1749282705610,-480.0,0.00028383,5]
[364868471,1749282705619,-807.84,0.00028383,5]
[364868472,1749282705628,-480.0,0.00028383,5]
[364868473,1749282705638,-480.0,0.00028383,5]
[364868474,1749282705647,-526.5,0.00028383,5]
[364868475,1749282705656,-506.14199569,0.00028383,5]
[364868476,1749282705666,-722.49,0.00028383,5]
[364868477,1749282705676,-529.50636307,0.00028383,5]
[364868478,1749282705685,-513.29225079,0.00028383,5]
[364868479,1749282705695,-480.0,0.00028383,5]
[364868480,1749282705704,-658.07,0.00028383,5]
[364868481,1749282705713,-480.0,0.00028383,5]
[364868482,1749282705723,-548.11,0.00028383,5]
[364868483,1749282705732,-480.0,0.00028383,5]
[364868484,1749282705933,-480.0,0.00028383,5]
[364868485,1749282705943,-480.0,0.00028383,5]
[364868486,1749282705953,-480.0,0.00028383,5]
[364868487,1749282705964,-1423.16,0.00028383,5]
[364868488,1749282705974,-505.5181524,0.00028383,5]
[364868489,1749282705984,-676.89,0.00028383,5]
[364868490,1749282705993,-1030.91,0.00028383,5]
[364868491,1749282706003,-480.0,0.00028383,5]
[364868492,1749282706012,-480.0,0.00028383,5]
[364868493,1749282706022,-903.48,0.00028383,5]
[364868494,1749282706031,-545.14,0.00028383,5]
[364868495,1749282706041,-481.75279724,0.00028383,5]
[364868496,1749282706051,-580.63,0.00028383,5]
[364868497,1749282706061,-624.11,0.00028383,5]
[364868498,1749282706071,-480.0,0.00028383,5]
[364868499,1749282706081,-480.0,0.00028383,5]
[364868500,1749282706091,-480.0,0.00028383,5]
[364868501,1749282706101,-480.0,0.00028383,5]
[364868502,1749282706111,-1137.84,0.00028383,5]
[364868503,1749282706120,-1026.76,0.00028383,5]
[364868504,1749282706130,-480.0,0.00028383,5]
[364868505,1749282706140,-480.0,0.00028383,5]
[364868506,1749282706150,-480.0,0.00028383,5]
[364868507,1749282706160,-480.0,0.00028383,5]
[364868508,1749282706169,-1323.94,0.00028383,5]
[364868509,1749282706180,-1037.35,0.00028383,5]
[364868510,1749282706189,-480.0,0.00028383,5]
[364868511,1749282706199,-480.0,0.00028383,5]
[364868512,1749282706209,-480.0,0.00028383,5]
[364868513,1749282706219,-480.0,0.00028383,5]
[364868514,1749282706228,-487.75117206,0.00028383,5]
[364868515,1749282706239,-1212.38,0.00028383,5]
[364868516,1749282706250,-480.0,0.00028383,5]
[364868517,1749282706260,-480.0,0.00028383,5]
[364868518,1749282706270,-713.0,0.00028383,5]
[364868519,1749282706279,-811.35,0.00028383,5]
[364868520,1749282706289,-480.0,0.00028383,5]
[364868521,1749282706299,-634.26,0.00028383,5]
[364868522,1749282706309,-1174.57,0.00028383,5]
[364868523,1749282706319,-737.61,0.00028383,5]
[364868524,1749282706328,-1789.64,0.00028383,5]
[364868525,1749282706338,-480.0,0.00028383,5]
[364868526,1749282706348,-480.0,0.00028383,5]
[364868527,1749282706359,-343.77431428,0.00028383,5]
[364868528,1749282706369,-480.0,0.00028383,5]
[364868529,1749282706378,-480.0,0.00028383,5]
[364868530,1749282706388,-480.0,0.00028383,5]
[364868531,1749282706398,-835.68,0.00028383,5]
[364868532,1749282706407,-208.07743202,0.00028383,5]
[364868533,1749282706417,-480.0,0.00028383,5]
[364868534,1749282706427,-480.0,0.00028383,5]
[364868535,1749282706437,-611.81,0.00028383,5]
[364868536,1749282706446,-1115.25,0.00028383,5]
[364868537,1749282706456,-984.78,0.00028383,5]
[364868538,1749282706466,-592.62,0.00028383,5]
[364868539,1749282706476,-480.0,0.00028383,5]
[364868540,1749282706486,-480.0,0.00028383,5]
[364868541,1749282706495,-480.0,0.00028383,5]
[364868542,1749282706505,-480.0,0.00028383,5]
[364868543,1749282706515,-480.0,0.00028383,5]
[364868544,1749282706524,-2016.63,0.00028383,5]
[364868545,1749282706534,-480.0,0.00028383,5]
[364868546,1749282706544,-480.0,0.00028383,5]
[364868547,1749282706553,-1504.99,0.00028383,5]
[364868548,1749282706562,-220.56707478,0.00028383,5]
[364868549,1749282706573,-652.14,0.00028383,5]
[364868550,1749282706583,-601.8,0.00028383,5]
[364868551,1749282706594,-1444.88,0.00028383,5]
[364868552,1749282706604,-533.04364812,0.00028383,5]
[364868553,1749282706614,-787.2,0.00028383,5]
[364868554,1749282706624,-416.04029825,0.00028383,5]
[364868555,1749282706634,-658.72,0.00028383,5]
[364868556,1749282706644,-853.62,0.00028383,5]
[364868557,1749282706653,-879.54,0.00028383,5]
[364868558,1749282706663,-480.0,0.00028383,5]
[364868559,1749282706673,-753.65,0.00028383,5]
[364868560,1749282706682,-990.87,0.00028383,5]
[364868561,1749282706692,-480.0,0.00028383,5]
[364868562,1749282706702,-1000.0,0.00028383,5]
[364868563,1749282706712,-850.33,0.00028383,5]
[364868564,1749282706721,-169.15025998,0.00028383,5]
[364868565,1749282706731,-480.0,0.00028383,5]
[364868566,1749282706741,-494.24,0.00028383,5]
[364868567,1749282706751,-480.0,0.00028383,5]
[364868568,1749282706760,-614.65,0.00028383,5]
[364868569,1749282706770,-768.49,0.00028383,5]
[364868570,1749282706780,-480.0,0.00028383,5]
[364868571,1749282706790,-620.08,0.00028383,5]
[364868572,1749282706799,-480.0,0.00028383,5]
[364868573,1749282706809,-702.18,0.00028383,5]
[364868574,1749282706819,-480.0,0.00028383,5]
[364868575,1749282706828,-1066.78,0.00028383,5]
[364868576,1749282706838,-715.95,0.00028383,5]
[364868577,1749282706847,-222.15729077,0.00028383,5]
[364868578,1749282706857,-480.0,0.00028383,5]
[364868579,1749282706866,-480.0,0.00028383,5]
[364868580,1749282706876,-656.54,0.00028383,5]
[364868581,1749282706888,-480.0,0.00028383,5]
[364868582,1749282706898,-871.81,0.00028383,5]
[364868583,1749282706908,-674.63,0.00028383,5]
[364868584,1749282706918,-607.29,0.00028383,5]
[364868585,1749282706928,-647.25,0.00028383,5]
[364868586,1749282706938,-480.0,0.00028383,5]
[364868587,1749282706947,-867.98,0.00028383,5]
[364868588,1749282706958,-1182.54,0.00028383,5]
[364868589,1749282706968,-480.0,0.00028383,5]
[364868590,1749282706977,-1150.03,0.00028383,5]
[364868591,1749282706987,-1505.03,0.00028383,5]
[364868592,1749282706997,-1473.87,0.00028383,5]
[364868593,1749282707006,-2181.17,0.00028383,5]
[364868594,1749282707016,-2996.31,0.00028383,5]
[364868595,1749282707026,-930.43,0.00028383,5]
[364868596,1749282707035,-7442.14,0.00028383,5]
[364868597,1749282707045,-480.0,0.00028383,5]
[364868598,1749282707056,-5891.72,0.00028383,5]
[364868599,1749282707065,-4307.55,0.00028383,5]
[364868600,1749282707075,-956.19,0.00028383,5]
[364868601,1749282707085,-480.0,0.00028383,5]
[364868602,1749282707095,-798.07,0.00028383,5]
[364868603,1749282707105,-1206.45,0.00028383,5]
[364868604,1749282707115,-480.0,0.00028383,5]
[364868605,1749282707125,-480.0,0.00028383,5]
[364868606,1749282707135,-1267.21,0.00028383,5]
[364868607,1749282707145,-480.0,0.00028383,5]
[364868608,1749282707155,-480.0,0.00028383,5]
[364868609,1749282707165,-5617.32,0.00028383,5]
[364868610,1749282707175,-798.33,0.00028383,5]
[364868611,1749282707185,-1111.08,0.00028383,5]
[364868612,1749282707194,-1613.36,0.00028383,5]
[364868613,1749282707204,-504.77235162,0.00028383,5]
[364868614,1749282707214,-665.13,0.00028383,5]
[364868615,1749282707224,-984.27,0.00028383,5]
[364868616,1749282707234,-10955.06,0.00028383,5]
[364868617,1749282707243,-8194.39,0.00028383,5]
[364868618,1749282707253,-480.0,0.00028383,5]
[364868619,1749282707263,-835.03,0.00028383,5]
[364868620,1749282707273,-3592.23,0.00028383,5]
[364868621,1749282707283,-675.89,0.00028383,5]
[364868622,1749282707293,-480.0,0.00028383,5]
[364868623,1749282707303,-1342.98,0.00028383,5]
[364868624,1749282707313,-3803.92,0.00028383,5]
[364868625,1749282707322,-2538.94,0.00028383,5]
[364868626,1749282707332,-1427.01,0.00028383,5]
[364868627,1749282707342,-1719.89,0.00028383,5]
[364868628,1749282707351,-1821.11,0.00028383,5]
[364868629,1749282707360,-480.0,0.00028383,5]
[364868630,1749282707369,-1325.93,0.00028383,5]
[364868631,1749282707378,-480.0,0.00028383,5]
[364868632,1749282707388,-1072.0,0.00028383,5]
[364868633,1749282707398,-1000.0,0.00028383,5]
[364868634,1749282707407,-1892.42,0.00028383,5]
[364868635,1749282707416,-63362.5,0.00028383,5]
[364868636,1749282707425,-1666.49,0.00028383,5]
[364868637,1749282707435,-769.25,0.00028383,5]
[364868638,1749282707444,-480.0,0.00028383,5]
[364868639,1749282707453,-622.41,0.00028383,5]
[364868640,1749282707463,-480.0,0.00028383,5]
[364868641,1749282707472,-480.0,0.00028383,5]
[364868642,1749282707482,-802.83,0.00028383,5]
[364868643,1749282707491,-3297.59,0.00028383,5]
[364868644,1749282707500,-1298.4,0.00028383,5]
[364868645,1749282707510,-1257.45,0.00028383,5]
[364868646,1749282707519,-619.63,0.00028383,5]
[364868647,1749282707528,-480.0,0.00028383,5]
[364868648,1749282707539,-2010.42,0.00028383,5]
[364868649,1749282707549,-1795.02,0.00028383,5]
[364868650,1749282707559,-2147.53,0.00028383,2]
[364868651,1749282707568,-480.0,0.00028383,5]
[364868652,1749282707578,-2644.51,0.00028383,5]
[364868653,1749282707588,-1671.91,0.00028383,5]
[364868654,1749282707597,-480.0,0.00028383,5]
[364868655,1749282707607,-480.0,0.00028383,5]
[364868656,1749282707617,-2770.74,0.00028383,5]
[364868657,1749282707626,-3633.12,0.00028383,5]
[364868658,1749282707636,-480.0,0.00028383,5]
[364868659,1749282707646,-6110.32,0.00028383,5]
[364868660,1749282707655,-1513.66,0.00028383,5]
[364868661,1749282707664,-511.75752596,0.00028383,5]
[364868662,1749282707674,-1788.9,0.00028383,5]
[364868663,1749282707684,-480.0,0.00028383,5]
[364868664,1749282707694,-814.18,0.00028383,5]
[364868665,1749282707704,-11876.34,0.00028383,5]
[364868666,1749282707713,-959.52,0.00028383,5]
[364868667,1749282707723,-2522.98,0.00028383,5]
[364868668,1749282707732,-1093.12,0.00028383,5]
[364868669,1749282707742,-1813.84,0.00028383,5]
[364868670,1749282707751,-481.61,0.00028383,5]
[364868671,1749282707760,-480.0,0.00028383,5]
[364868672,1749282707770,-6018.65,0.00028383,5]
[364868673,1749282707780,-1581.96,0.00028383,5]
[364868674,1749282707789,-855.47,0.00028383,5]
[364868675,1749282707799,-480.0,0.00028383,5]
[364868676,1749282707809,-480.0,0.00028383,5]
[364868677,1749282707819,-480.0,0.00028383,5]
[364868678,1749282707828,-5571.7,0.00028383,5]
[364868679,1749282707838,-1003.3,0.00028383,5]
[364868680,1749282707848,-1086.55,0.00028383,5]
[364868681,1749282707857,-1345.91,0.00028383,5]
[364868682,1749282707867,-1327.04,0.00028383,5]
[364868683,1749282707876,-2008.91,0.00028383,5]
[364868684,1749282707891,-1675.33,0.00028383,5]
[364868685,1749282707901,-511.16572398,0.00028383,5]
[364868686,1749282707910,-734.71,0.00028383,5]
[364868687,1749282707919,-480.0,0.00028383,5]
[364868688,1749282707930,-1529.93,0.00028383,5]
[364868689,1749282707939,-480.0,0.00028383,5]
[364868690,1749282707948,-480.0,0.00028383,5]
[364868691,1749282707959,-596.66,0.00028383,5]
[364868692,1749282707968,-480.0,0.00028383,5]
[364868693,1749282707978,-1453.1,0.00028383,5]
[364868694,1749282707989,-3865.55,0.00028383,5]
[364868695,1749282707999,-3264.83,0.00028383,5]
[364868696,1749282708009,-967.54,0.00028383,5]
[364868697,1749282708018,-480.0,0.00028383,5]
[364868698,1749282708028,-871.56,0.00028383,5]
[364868699,1749282708038,-1458.57,0.00028383,5]
[364868700,1749282708048,-749.45,0.00028383,5]
[364868701,1749282708058,-480.0,0.00028383,5]
[364868702,1749282708068,-481.08017082,0.00028383,5]
[364868703,1749282708077,-915.39,0.00028383,5]
[364868704,1749282708090,-480.0,0.00028383,5]
[364868705,1749282708099,-4023.49,0.00028383,5]
[364868706,1749282708109,-1170.49,0.00028383,5]
[364868707,1749282708119,-480.0,0.00028383,5]
[364868708,1749282708129,-742.56,0.00028383,5]
[364868709,1749282708139,-1731.59,0.00028383,5]
[364868710,1749282708150,-594.14,0.00028383,5]
[364868711,1749282708160,-480.0,0.00028383,5]
[364868712,1749282708170,-480.0,0.00028383,5]
[364868713,1749282708180,-1143.16,0.00028383,5]
[364868714,1749282708190,-480.0,0.00028383,5]
[364868715,1749282708199,-2029.78,0.00028383,5]
[364868716,1749282708209,-2000.65,0.00028383,5]
[364868717,1749282708220,-480.0,0.00028383,5]
[364868718,1749282708230,-485.39,0.00028383,5]
[364868719,1749282708239,-1386.31,0.00028383,5]
[364868720,1749282708250,-683.94,0.00028383,5]
[364868721,1749282708259,-747.9,0.00028383,5]
[364868722,1749282708268,-1122.69,0.00028383,5]
[364868723,1749282708278,-480.0,0.00028383,5]
[364868724,1749282708287,-480.0,0.00028383,5]
[364868725,1749282708298,-788.44,0.00028383,5]
[364868726,1749282708308,-480.0,0.00028383,5]
[364868727,1749282708317,-494.08,0.00028383,5]
[364868728,1749282708328,-518.65,0.00028383,5]
[364868729,1749282708338,-492.12,0.00028383,5]
[364868730,1749282708348,-1941.16,0.00028383,5]
[364868731,1749282708357,-480.0,0.00028383,5]
[364868732,1749282708367,-480.0,0.00028383,5]
[364868733,1749282708378,-480.0,0.00028383,5]
[364868734,1749282708388,-499.42,0.00028383,5]
[364868735,1749282708398,-2403.78,0.00028383,5]
[364868736,1749282708408,-757.09,0.00028383,5]
[364868737,1749282708418,-480.0,0.00028383,5]
[364868738,1749282708428,-957.28,0.00028383,5]
[364868739,1749282708437,-697.95,0.00028383,5]
[364868740,1749282708448,-575.71,0.00028383,5]
[364868741,1749282708458,-480.0,0.00028383,5]
[364868742,1749282708467,-748.21,0.00028383,5]
[364868743,1749282708477,-480.0,0.00028383,5]
[364868744,1749282708487,-607.22,0.00028383,5]
[364868745,1749282708497,-480.0,0.00028383,5]
[364868746,1749282708507,-5005.59,0.00028383,5]
[364868747,1749282708516,-10865.99,0.00028383,5]
[364868748,1749282708526,-4322.98,0.00028383,5]
[364868749,1749282708536,-1739.86,0.00028383,5]
[364868750,1749282708546,-630.74,0.00028383,5]
[364868751,1749282708556,-480.0,0.00028383,5]
[364868752,1749282708767,-480.0,0.00028383,5]
[364868753,1749282708778,-480.0,0.00028383,5]
[364868754,1749282708788,-509.19815683,0.00028383,5]
[364868755,1749282708798,-1078.23,0.00028383,5]
[364868756,1749282708808,-480.0,0.00028383,5]
[364868757,1749282708819,-1387.38,0.00028383,5]
[364868758,1749282708828,-689.06,0.00028383,5]
[364868759,1749282708838,-480.0,0.00028383,5]
[364868760,1749282708848,-16410.82,0.00028383,5]
[364868761,1749282708859,-1650.11,0.00028383,5]
[364868762,1749282708869,-7442.43,0.00028383,5]
[364868763,1749282708880,-3593.96,0.00028383,5]
[364868764,1749282708894,-749.65,0.00028383,5]
[364868765,1749282708904,-590.0,0.00028383,5]
[364868766,1749282708914,-2124.13,0.00028383,5]
[364868767,1749282708924,-816.17,0.00028383,5]
[364868768,1749282708934,-665.9,0.00028383,5]
[364868769,1749282708944,-2227.22,0.00028383,5]
[364868770,1749282708954,-1352.48,0.00028383,5]
[364868771,1749282708965,-480.0,0.00028383,5]
[364868772,1749282708975,-507.82,0.00028383,5]
[364868773,1749282708985,-480.0,0.00028383,5]
[364868774,1749282708995,-1744.26,0.00028383,5]
[364868775,1749282709005,-480.0,0.00028383,5]
[364868776,1749282709016,-3612.7,0.00028383,5]
[364868777,1749282709026,-480.0,0.00028383,5]
[364868778,1749282709036,-480.0,0.00028383,5]
[364868779,1749282709045,-480.0,0.00028383,5]
[364868780,1749282709055,-480.0,0.00028383,5]
[364868781,1749282709066,-1656.96,0.00028383,5]
[364868782,1749282709076,-1260.39,0.00028383,5]
[364868783,1749282709086,-915.34,0.00028383,5]
[364868784,1749282709096,-480.0,0.00028383,5]
[364868785,1749282709106,-980.64,0.00028383,5]
[364868786,1749282709116,-3111.73,0.00028383,5]
[364868787,1749282709127,-642.18,0.00028383,5]
[364868788,1749282709137,-959.96,0.00028383,5]
[364868789,1749282709148,-480.0,0.00028383,5]
[364868790,1749282709158,-929.79,0.00028383,5]
[364868791,1749282709168,-151.0,0.00028384,7]
[364868792,1749282709178,-300.64,0.00028397,2]
[364868793,1749282709189,-1342.5,0.00028401,2]
[364868794,1749282709199,-154.45815481,0.000285,7]
[364868795,1749282709208,-7050.2349988,0.000285,5]
[364868796,1749282709219,-335.472379,0.00028508,7]
[364868797,1749282709229,-335.472379,0.00028508,7]
[364868798,1749282709239,-1000.0,0.00028522,2]
[364868799,1749282709249,-171.445012,0.00028528,7]
[364868800,1749282709260,-163.931404,0.00028528,7]
[364868801,1749282709269,-151.0,0.00028528,7]
[364868802,1749282709280,-151.0,0.00028547,7]
[364868803,1749282709290,-271.080303,0.00028547,7]
[364868804,1749282709300,-151.0,0.00028547,7]
[364868805,1749282709310,-151.0,0.00028547,7]
[364868806,1749282709320,-151.0,0.00028547,7]
[364868807,1749282709331,-209.089398,0.00028547,7]
[364868808,1749282709341,-229.208143,0.00028547,7]
[364868809,1749282709351,-687.42033,0.00028547,7]
[364868810,1749282709361,-151.0,0.00028547,7]
[364868811,1749282709371,-200.965681,0.00028547,7]
[364868812,1749282709381,-687.42033,0.00028547,7]
[364868813,1749282709391,-151.0,0.00028547,7]
[364868814,1749282709401,-151.0,0.00028547,7]
[364868815,1749282709412,-270.478349,0.00028547,7]
[364868816,1749282709422,-151.0,0.00028547,7]
[364868817,1749282709432,-151.0,0.00028547,7]
[364868818,1749282709442,-151.0,0.00028547,7]
[364868819,1749282709451,-180.27294,0.00028547,7]
[364868820,1749282709461,-151.0,0.00028547,7]
[364868821,1749282709471,-182.368168,0.00028547,7]
[364868822,1749282709480,-182.368168,0.00028547,7]
[364868823,1749282709490,-151.0,0.00028547,7]
[364868824,1749282709499,-151.0,0.00028547,7]
[364868825,1749282709509,-151.0,0.00028547,7]
[364868826,1749282709518,-151.0,0.00028547,7]
[364868827,1749282709528,-202.3884,0.00028547,7]
[364868828,1749282709538,-202.3884,0.00028547,7]
[364868829,1749282709547,-199.862751,0.00028547,7]
[364868830,1749282709557,-199.862751,0.00028547,7]
[364868831,1749282709567,-151.0,0.00028547,7]
[364868832,1749282709577,-151.0,0.00028547,7]
[364868833,1749282709587,-225.218056,0.00028547,7]
[364868834,1749282709598,-151.0,0.00028547,7]
[364868835,1749282709607,-151.0,0.00028547,7]
[364868836,1749282709617,-154.25564,0.00028547,7]
[364868837,1749282709627,-154.25564,0.00028547,7]
[364868838,1749282709636,-151.0,0.00028547,7]
[364868839,1749282709645,-171.882811,0.00028547,7]
[364868840,1749282709655,-171.882811,0.00028547,7]
[364868841,1749282709664,-151.0,0.00028547,7]
[364868842,1749282709674,-961.409907,0.00028547,7]
[364868843,1749282709683,-961.409907,0.00028547,7]
[364868844,1749282709693,-151.0,0.00028547,7]
[364868845,1749282709703,-151.0,0.00028547,7]
[364868846,1749282709713,-151.0,0.00028547,7]
[364868847,1749282709724,-151.0,0.00028547,7]
[364868848,1749282709733,-151.0,0.00028547,7]
[364868849,1749282709743,-151.0,0.00028547,7]
[364868850,1749282709752,-151.0,0.00028547,7]
[364868851,1749282709762,-241.152241,0.00028547,7]
[364868852,1749282709774,-258.138741,0.00028547,7]
[364868853,1749282709784,-258.138741,0.00028547,7]
[364868854,1749282709794,-151.0,0.00028547,7]
[364868855,1749282709805,-283.028488,0.00028547,7]
[364868856,1749282709815,-151.0,0.00028547,7]
[364868857,1749282709827,-283.028488,0.00028547,7]
[364868858,1749282709837,-308.719033,0.00028547,7]
[364868859,1749282709846,-308.719033,0.00028547,7]
[364868860,1749282709856,-1128.633104,0.00028547,7]
[364868861,1749282709866,-1128.633104,0.00028547,7]
[364868862,1749282709876,-1221.810892,0.00028547,7]
[364868863,1749282709890,-1221.810892,0.00028547,7]
[364868864,1749282709899,-151.0,0.00028547,7]
[364868866,1749282709908,-151.0,0.00028547,7]
[364868867,1749282709918,-151.0,0.00028547,7]
[364868868,1749282709929,-1106.284742,0.00028547,7]
[364868869,1749282709939,-1106.284742,0.00028547,7]
[364868870,1749282709948,-151.0,0.00028547,7]
[364868871,1749282709960,-1077.542394,0.00028547,7]
[364868872,1749282709970,-1077.542394,0.00028547,7]
[364868873,1749282709982,-1715.887585,0.00028547,5]
[364868874,1749282709993,-2102.121321,0.00028547,5]
[364868875,1749282710006,-356.63172155,0.00028547,5]
[364868876,1749282710016,-353.96255562,0.00028547,5]
[364868877,1749282710045,-480.0,0.00028547,5]
[364868878,1749282710064,-480.0,0.00028547,5]
[364868879,1749282710087,-512.57271263,0.00028547,5]
[364868880,1749282710108,-495.78,0.00028547,5]
[364868881,1749282710128,-512.07300369,0.00028547,5]
[364868882,1749282710152,-480.0,0.00028547,5]
[364868883,1749282710175,-496.76692285,0.00028547,5]
[364868884,1749282710197,-500.91767531,0.00028547,5]
[364868885,1749282710218,-813.01,0.00028547,5]
[364868886,1749282710239,-481.51222496,0.00028547,5]
[364868887,1749282710261,-480.0,0.00028547,5]
[364868888,1749282710277,-480.0,0.00028547,5]
[364868889,1749282710296,-506.06481359,0.00028547,5]
[364868890,1749282710314,-480.0,0.00028547,5]
[364868891,1749282710335,-480.0,0.00028547,5]
[364868892,1749282710353,-480.0,0.00028547,5]
[364868893,1749282710369,-480.0,0.00028547,5]
[364868894,1749282710386,-480.0,0.00028547,5]
[364868895,1749282710402,-480.0,0.00028547,2]
[364868896,1749282710419,-480.0,0.00028547,2]
[364868897,1749282710436,-480.0,0.00028547,5]
[364868898,1749282710453,-577.15,0.00028547,5]
[364868899,1749282710469,-480.0,0.00028547,5]
[364868900,1749282710486,-509.8,0.00028547,5]
[364868901,1749282710502,-480.0,0.00028547,5]
[364868902,1749282710519,-480.0,0.00028547,5]
[364868903,1749282710536,-480.0,0.00028547,2]
[364868904,1749282710552,-480.0,0.00028547,5]
[364868905,1749282710569,-480.0,0.00028547,5]
[364868906,1749282710585,-842.56,0.00028547,5]
[364868907,1749282710608,-480.0,0.00028547,5]
[364868908,1749282710625,-618.47,0.00028547,5]
[364868909,1749282710642,-480.0,0.00028547,5]
[364868910,1749282710659,-1163.74,0.00028547,5]
[364868911,1749282710677,-463.7303861,0.00028547,5]
[364868912,1749282710694,-309.80047158,0.00028547,5]
[364868913,1749282710712,-807.84,0.00028547,5]
[364868914,1749282710729,-155.707702,0.00028547,5]
[364868915,1749282710746,-480.0,0.00028547,5]
[364868916,1749282710764,-480.0,0.00028547,5]
[364868917,1749282710781,-526.5,0.00028547,5]
[364868918,1749282710798,-722.49,0.00028547,5]
[364868919,1749282710815,-480.0,0.00028547,5]
[364868920,1749282710832,-658.07,0.00028547,5]
[364868921,1749282710849,-480.0,0.00028547,5]
[364868922,1749282710866,-548.11,0.00028547,5]
[364868923,1749282710884,-480.0,0.00028547,5]
[364868924,1749282710901,-496.74500931,0.00028547,5]
[364868925,1749282710919,-507.00560806,0.00028547,5]
[364868926,1749282710938,-480.0,0.00028547,5]
[364868927,1749282710955,-1423.16,0.00028547,5]
[364868928,1749282710973,-676.89,0.00028547,5]
[364868929,1749282710990,-1030.91,0.00028547,5]
[364868930,1749282711007,-432.35576974,0.00028547,5]
[364868931,1749282711025,-480.0,0.00028547,5]
[364868932,1749282711042,-903.48,0.00028547,5]
[364868933,1749282711061,-545.14,0.00028547,5]
[364868934,1749282711077,-580.63,0.00028547,5]
[364868935,1749282711094,-624.11,0.00028547,5]
[364868936,1749282711112,-480.0,0.00028547,5]
[364868937,1749282711129,-480.0,0.00028547,5]
[364868938,1749282711147,-480.0,0.00028547,5]
[364868939,1749282711164,-480.0,0.00028547,5]
[364868940,1749282711181,-1137.84,0.00028547,5]